fUSD/lending_fUSD_20260329
["ID","MTS","AMOUNT","RATE_DAILY","PERIOD"]
[419066667,1774825844297,-924.29149207,0.00014143,2]
[419066668,1774825844306,-626.53779094,0.00014171,2]
[419066669,1774825844315,-500.0,0.00014171,2]
[419066670,1774825844324,-1000.0,0.00014247,2]
[419066671,1774825844334,-74.76542853,0.00014247,2]
[419066672,1774825844351,-710.09457147,0.00014247,2]
[419066673,1774825844360,-500.0,0.0001435,2]
[419066674,1774825844371,-500.98440072,0.0001435,2]
[419066675,1774825844381,-500.0,0.0001435,2]
[419066676,1774825844392,-500.0,0.0001435,2]
[419066677,1774825844401,-200.0,0.00014384,2]
[419066678,1774825844411,-659.25822404,0.00014384,2]
[419066679,1774825844426,-760.62512853,0.00014384,2]
[419066680,1774825844435,-1768.68009401,0.0001439,2]
[419066681,1774825844447,-1130.23678436,0.0001439,2]
[419066682,1774825844540,-7498.50417921,0.0001439,2]
[419066683,1774825844550,-510.6,0.00014392,2]
[419066684,1774825844559,-286.26486585,0.0001445,2]
[419066685,1774825844569,-500.0,0.0001445,2]
[419066686,1774825844578,-500.0,0.0001445,2]
[419066687,1774825844587,-500.0,0.0001445,2]
[419066688,1774825844597,-500.0,0.0001445,2]
[419066689,1774825844606,-500.0,0.0001445,2]
[419066690,1774825844911,-500.0,0.0001445,2]
[419066691,1774825844922,-218.52,0.00014452,2]
[419066692,1774825844932,-500.0,0.00014489,2]
[419066693,1774825844941,-500.0,0.00014489,2]
[419066694,1774825844951,-500.0,0.00014489,2]
[419066695,1774825844960,-330.25769575,0.00014489,2]
[419066696,1774825844970,-339.1209,0.000145,2]
[419066697,1774825844980,-1117.0799,0.00014504,2]
[419066698,1774825844990,-888.83,0.00014521,2]
[419066699,1774825845000,-500.0,0.00014627,2]
[419066700,1774825845009,-1631.88,0.00014655,30]
[419066701,1774825845020,-289.39131265,0.00014719,2]
[419066702,1774825845031,-478.92,0.00014741,2]
[419066703,1774825845040,-227.36412512,0.0001475,2]
[419066704,1774825845050,-500.0,0.0001475,2]
[419066705,1774825845060,-500.0,0.0001475,2]
[419066706,1774825845070,-500.0,0.0001475,2]
[419066707,1774825845079,-500.0,0.0001475,2]
[419066708,1774825845089,-500.0,0.0001475,2]
[419066709,1774825845099,-1500.0,0.00014795,2]
[419066710,1774825845108,-578.20924308,0.0001488,2]
[419066711,1774825845117,-500.0,0.0001488,2]
[419066712,1774825845127,-1428.38747117,0.0001488,2]
[419066713,1774825845136,-500.0,0.0001488,2]
[419066714,1774825845145,-500.0,0.0001488,2]
[419066715,1774825845155,-500.0,0.0001488,2]
[419066716,1774825845165,-500.0,0.0001488,2]
[419066717,1774825845174,-500.0,0.0001488,2]
[419066718,1774825845183,-500.0,0.0001488,2]
[419066719,1774825845192,-500.0,0.0001488,2]
[419066720,1774825845201,-209.40437684,0.0001488,2]
[419066721,1774825845211,-209.40437684,0.0001488,2]
[419066722,1774825845222,-500.0,0.0001488,2]
[419066723,1774825845232,-500.0,0.0001488,2]
[419066724,1774825845242,-500.0,0.0001488,2]
[419066725,1774825845253,-500.0,0.0001488,2]
[419066726,1774825845263,-151.0,0.0001488,2]
[419066727,1774825845274,-151.0,0.0001488,2]
[419066728,1774825845285,-500.0,0.0001488,2]
[419066729,1774825845295,-151.0,0.0001488,2]
[419066730,1774825845305,-500.0,0.0001488,2]
[419066731,1774825845314,-151.0,0.0001488,2]
[419066732,1774825845324,-500.0,0.0001488,2]
[419066733,1774825845333,-292.30151101,0.0001488,2]
[419066734,1774825845343,-500.0,0.0001488,2]
[419066735,1774825845352,-500.0,0.0001488,2]
[419066736,1774825845362,-500.0,0.0001488,2]
[419066737,1774825845371,-500.0,0.0001488,2]
[419066738,1774825845380,-500.0,0.0001488,2]
[419066739,1774825845389,-500.0,0.0001488,2]
[419066740,1774825845399,-500.0,0.0001488,2]
[419066741,1774825845408,-500.0,0.0001488,2]
[419066742,1774825845419,-500.0,0.0001488,2]
[419066743,1774825845429,-500.0,0.0001488,2]
[419066744,1774825845438,-500.0,0.0001488,2]
[419066745,1774825845448,-500.0,0.0001488,2]
[419066746,1774825845457,-174.61919141,0.0001488,2]
[419066747,1774825845467,-500.0,0.0001488,2]
[419066748,1774825845477,-500.0,0.0001488,2]
[419066749,1774825845487,-500.0,0.0001488,2]
[419066750,1774825845497,-500.0,0.0001488,2]
[419066751,1774825845507,-209.40437684,0.0001488,2]
[419066752,1774825845517,-500.0,0.0001488,2]
[419066753,1774825845526,-500.0,0.0001488,2]
[419066754,1774825845536,-500.0,0.0001488,2]
[419066755,1774825845545,-693.3919763,0.0001488,2]
[419066756,1774825845554,-200.0,0.0001488,2]
[419066757,1774825845563,-151.0,0.0001488,2]
[419066758,1774825845572,-151.0,0.0001488,2]
[419066759,1774825845582,-194.63986655,0.0001488,2]
[419066760,1774825845591,-250.0,0.0001488,2]
[419066761,1774825845601,-262.90206542,0.0001488,2]
[419066762,1774825845611,-279.9045709,0.0001488,2]
[419066763,1774825845621,-250.0,0.0001488,2]
[419066764,1774825845632,-250.0,0.0001488,2]
[419066765,1774825845641,-250.0,0.0001488,2]
[419066766,1774825845651,-250.0,0.0001488,2]
[419066767,1774825845660,-250.0,0.0001488,2]
[419066768,1774825845669,-250.0,0.0001488,2]
[419066769,1774825845679,-250.0,0.0001488,2]
[419066770,1774825845689,-250.0,0.0001488,2]
[419066771,1774825845699,-250.0,0.0001488,2]
[419066772,1774825845708,-250.0,0.0001488,2]
[419066773,1774825845718,-209.40437684,0.0001488,2]
[419066774,1774825845728,-743.50770149,0.0001488,2]
[419066775,1774825845738,-500.0,0.0001488,2]
[419066776,1774825845748,-500.0,0.0001488,2]
[419066777,1774825845758,-500.0,0.0001488,2]
[419066778,1774825845768,-500.0,0.0001488,2]
[419066779,1774825845778,-500.0,0.0001488,2]
[419066780,1774825845788,-1000.0,0.00014898,2]
[419066781,1774825845797,-685.01158904,0.00014898,2]
[419066782,1774825845807,-21604.97,0.000149,2]
[419066783,1774825845817,-4354.18,0.000149,2]
[419066784,1774825845827,-4549.81,0.000149,2]
[419066785,1774825845837,-1442.64,0.000149,2]
[419066786,1774825845846,-3992.39,0.000149,2]
[419066787,1774825845856,-544.45729765,0.000149,2]
[419066788,1774825845866,-200.0,0.00014932,2]
[419066789,1774825845876,-500.0,0.00014935,2]
[419066790,1774825845886,-151.0,0.00014935,2]
[419066791,1774825845896,-272.62944185,0.00014935,2]
[419066792,1774825845907,-288.62048719,0.00014985,2]
[419066793,1774825845918,-500.0,0.0001499,2]
[419066794,1774825845928,-151.0,0.0001499,2]
[419066795,1774825845939,-282.71673119,0.0001499,2]
[419066796,1774825845949,-1000.0,0.00014998,2]
[419066797,1774825845960,-500.38478146,0.00014998,2]
[419066798,1774825845970,-1000.0,0.00014998,2]
[419066799,1774825845980,-1000.0,0.00014998,2]
[419066800,1774825845990,-300.0,0.00015,2]
[419066801,1774825845999,-2065.44755052,0.00015,2]
[419066802,1774825846010,-4998.82438298,0.00015,2]
[419066803,1774825846020,-8077.67315191,0.00015,2]
[419066805,1774825846030,-1000.0,0.00015037,2]
[419066807,1774825846041,-500.0,0.00015045,2]
[419066809,1774825846051,-151.0,0.00015045,2]
[419066811,1774825846060,-293.17725025,0.00015045,2]
[419066812,1774825846070,-30000.0,0.00015047,2]
[419066814,1774825846080,-880.69,0.00015068,2]
[419066816,1774825846089,-2867.74152195,0.000151,2]
[419066819,1774825846103,-418.74847805,0.000151,2]
[419066820,1774825846112,-86.25152195,0.000151,2]
[419066821,1774825846139,-413.74847805,0.000151,2]
[419066822,1774825846150,-151.0,0.000151,2]
[419066823,1774825846161,-304.02480851,0.000151,2]
[419066824,1774825846176,-1219.67,0.00015101,2]
[419066825,1774825846185,-599.14301527,0.00015101,2]
[419066826,1774825846220,-331.70198473,0.00015101,2]
[419066827,1774825846229,-6013.0,0.00015102,2]
[419066829,1774825846239,-1413.556,0.00015102,2]
[419066831,1774825846249,-2482.596,0.00015102,2]
[419066833,1774825846258,-3765.0,0.00015102,2]
[419066835,1774825846268,-500.0,0.00015155,2]
[419066837,1774825846277,-151.0,0.00015155,2]
[419066839,1774825846287,-315.27372642,0.00015155,2]
[419066841,1774825846296,-500.0,0.00015175,2]
[419066843,1774825846305,-500.0,0.0001521,2]
[419066844,1774825846315,-151.0,0.0001521,2]
[419066845,1774825846324,-326.9388543,0.0001521,2]
[419066846,1774825846333,-3000.0,0.00015233,2]
[419066848,1774825846343,-3000.0,0.00015233,2]
[419066851,1774825846352,-500.0,0.00015265,2]
[419066854,1774825846360,-151.0,0.00015265,2]
[419066857,1774825846369,-339.03559191,0.00015265,2]
[419066860,1774825846379,-1096.24809732,0.00015277,2]
[419066862,1774825846388,-1000.0,0.00015298,2]
[419066865,1774825846398,-500.0,0.00015298,2]
[419066867,1774825846407,-1000.0,0.00015298,2]
[419066871,1774825846420,-500.0,0.0001532,2]
[419066873,1774825846428,-151.0,0.0001532,2]
[419066875,1774825846437,-2807.0,0.00015321,2]
[419066878,1774825846447,-880.69,0.00015342,2]
[419066882,1774825846457,-1000.0,0.00015342,2]
[419066884,1774825846466,-500.0,0.00015375,2]
[419066886,1774825846476,-151.0,0.00015375,2]
[419066888,1774825846486,-200.0,0.00015389,2]
[419066890,1774825846495,-200.0,0.00015389,2]
[419066892,1774825846504,-1570.0,0.000154,2]
[419066894,1774825846514,-2039.85,0.00015411,30]
[419066896,1774825846524,-370.54584708,0.00015415,2]
[419066898,1774825846536,-393.00963669,0.00015422,2]
[419066900,1774825846548,-1481.23780761,0.00015428,2]
[419066901,1774825846558,-217.15233878,0.00015428,2]
[419066902,1774825846568,-217.15233878,0.00015428,2]
[419066903,1774825846577,-181.08010149,0.00015428,2]
[419066904,1774825846586,-217.15233878,0.00015428,2]
[419066905,1774825846597,-719.04747942,0.00015428,2]
[419066906,1774825846608,-200.0,0.00015428,2]
[419066907,1774825846618,-290.26104003,0.00015428,2]
[419066908,1774825846630,-771.01748645,0.00015428,2]
[419066909,1774825846639,-500.0,0.0001543,2]
[419066910,1774825846648,-151.0,0.0001543,2]
[419066911,1774825846658,-897.73186186,0.00015446,2]
[419066912,1774825846668,-151.0,0.00015478,2]
[419066913,1774825846678,-200.0,0.0001548,2]
[419066914,1774825846687,-2807.0,0.00015482,2]
[419066915,1774825846696,-4871.8968139,0.000155,3]
[419066916,1774825846705,-4000.0,0.00015507,2]
[419066917,1774825846714,-1000.0,0.00015512,2]
[419066918,1774825846724,-1471.18842002,0.00015546,2]
[419066919,1774825846732,-1485.11706189,0.00015546,2]
[419066920,1774825846742,-500.0,0.00015546,2]
[419066921,1774825846751,-781.0056123,0.00015585,2]
[419066922,1774825846760,-500.0,0.00015603,2]
[419066923,1774825846769,-500.0,0.00015603,2]
[419066924,1774825846778,-500.0,0.00015603,2]
[419066925,1774825846788,-500.0,0.00015603,2]
[419066926,1774825846798,-500.0,0.00015603,2]
[419066927,1774825846807,-500.0,0.00015603,2]
[419066928,1774825846816,-500.0,0.00015603,2]
[419066929,1774825846826,-500.0,0.00015603,2]
[419066930,1774825846835,-500.0,0.00015603,2]
[419066931,1774825846845,-500.0,0.00015603,2]
[419066932,1774825846854,-500.0,0.00015603,2]
[419066933,1774825846863,-500.0,0.00015603,2]
[419066934,1774825846873,-500.0,0.00015603,2]
[419066935,1774825846882,-500.0,0.00015603,2]
[419066936,1774825846891,-500.0,0.00015603,2]
[419066937,1774825846900,-500.0,0.00015603,2]
[419066938,1774825846909,-500.0,0.00015603,2]
[419066939,1774825846919,-500.0,0.00015603,2]
[419066940,1774825846928,-500.0,0.00015603,2]
[419066941,1774825846936,-500.0,0.00015603,2]
[419066942,1774825846946,-500.0,0.00015603,2]
[419066943,1774825846955,-500.0,0.00015603,2]
[419066944,1774825846964,-500.0,0.00015603,2]
[419066945,1774825846973,-500.0,0.00015603,2]
[419066946,1774825846985,-500.0,0.00015603,2]
[419066947,1774825846995,-500.0,0.00015603,2]
[419066948,1774825847007,-500.0,0.00015603,2]
[419066950,1774825847016,-500.0,0.00015603,2]
[419066952,1774825847026,-500.0,0.00015603,2]
[419066954,1774825847035,-500.0,0.00015603,2]
[419066955,1774825847046,-500.0,0.00015603,2]
[419066957,1774825847055,-500.0,0.00015603,2]
[419066960,1774825847065,-500.0,0.00015603,2]
[419066961,1774825847075,-500.0,0.00015603,2]
[419066962,1774825847084,-500.0,0.00015603,2]
[419066963,1774825847093,-500.0,0.00015603,2]
[419066964,1774825847102,-500.0,0.00015603,2]
[419066965,1774825847111,-500.0,0.00015603,2]
[419066966,1774825847121,-500.0,0.00015603,2]
[419066967,1774825847130,-500.0,0.00015603,2]
[419066968,1774825847139,-500.0,0.00015603,2]
[419066969,1774825847149,-500.0,0.00015603,2]
[419066970,1774825847158,-500.0,0.00015603,2]
[419066971,1774825847169,-500.0,0.00015603,2]
[419066972,1774825847178,-500.0,0.00015603,2]
[419066973,1774825847187,-500.0,0.00015603,2]
[419066974,1774825847196,-500.0,0.00015603,2]
[419066975,1774825847205,-500.0,0.00015603,2]
[419066976,1774825847214,-500.0,0.00015603,2]
[419066978,1774825847224,-500.0,0.00015603,2]
[419066980,1774825847234,-500.0,0.00015603,2]
[419066995,1774825847367,-500.0,0.00015603,2]
[419066998,1774825847376,-482.33,0.00015603,2]
[419067000,1774825847385,-500.0,0.00015603,2]
[419067001,1774825847394,-500.0,0.00015603,2]
[419067003,1774825847403,-500.0,0.00015603,2]
[419067005,1774825847412,-500.0,0.00015603,2]
[419067007,1774825847421,-500.0,0.00015603,2]
[419067009,1774825847429,-500.0,0.00015603,2]
[419067011,1774825847439,-500.0,0.00015603,2]
[419067013,1774825847448,-500.0,0.00015603,2]
[419067015,1774825847457,-500.0,0.00015603,2]
[419067017,1774825847466,-500.0,0.00015603,2]
[419067019,1774825847475,-500.0,0.00015603,2]
[419067021,1774825847484,-500.0,0.00015603,2]
[419067023,1774825847493,-500.0,0.00015603,2]
[419067025,1774825847502,-500.0,0.00015603,2]
[419067027,1774825847511,-500.0,0.00015603,2]
[419067029,1774825847520,-500.0,0.00015603,2]
[419067030,1774825847528,-544.25,0.00015603,2]
[419067031,1774825847537,-732.73812256,0.00015634,2]
[419067032,1774825847547,-150.0,0.00015637,2]
[419067033,1774825847556,-1000.0,0.00015651,2]
[419067034,1774825847565,-1101.0,0.00015698,2]
[419067035,1774825847573,-300.0,0.000157,5]
[419067036,1774825847582,-2807.0,0.0001572,2]
[419067037,1774825847590,-1570.0,0.0001572,2]
[419067038,1774825847599,-1000.0,0.0001572,2]
[419067039,1774825847607,-1000.0,0.0001572,2]
[419067040,1774825847616,-1000.0,0.0001572,2]
[419067041,1774825847626,-1000.0,0.0001572,2]
[419067042,1774825847637,-1000.0,0.0001572,2]
[419067043,1774825847647,-1000.0,0.0001572,2]
[419067044,1774825847657,-1000.0,0.0001572,2]
[419067045,1774825847666,-1000.0,0.0001572,2]
[419067046,1774825847675,-1000.0,0.0001572,2]
[419067047,1774825847684,-1000.0,0.0001572,2]
[419067048,1774825847694,-1000.0,0.0001572,2]
[419067049,1774825847702,-1000.0,0.0001572,2]
[419067050,1774825847712,-765.114,0.0001572,2]
[419067051,1774825847721,-2000.0,0.0001576,2]
[419067052,1774825847730,-2000.0,0.0001576,2]
[419067053,1774825847739,-2000.0,0.0001576,2]
[419067054,1774825847748,-2000.0,0.0001576,2]
[419067055,1774825847758,-2000.0,0.0001576,2]
[419067056,1774825847768,-2000.0,0.0001576,2]
[419067057,1774825847777,-2000.0,0.0001576,2]
[419067058,1774825847786,-2000.0,0.0001576,2]
[419067059,1774825847795,-2000.0,0.0001576,2]
[419067060,1774825847804,-2000.0,0.0001576,2]
[419067061,1774825847813,-683.0,0.00015789,2]
[419067062,1774825847822,-300.0,0.000158,5]
[419067063,1774825847830,-1101.0,0.00015801,2]
[419067064,1774825847839,-1101.0,0.00015831,2]
[419067065,1774825847848,-683.0,0.00015838,2]
[419067066,1774825847857,-1101.0,0.00015842,2]
[419067067,1774825847866,-1500.0,0.00015846,2]
[419067068,1774825847875,-1500.0,0.00015846,2]
[419067069,1774825847884,-217.0,0.00015849,2]
[419067070,1774825847893,-272.0,0.00015849,2]
[419067071,1774825847902,-200.0,0.00015849,2]
[419067072,1774825847911,-200.0,0.00015849,2]
[419067073,1774825847920,-250.0,0.00015849,2]
[419067074,1774825847929,-224.653,0.00015849,2]
[419067075,1774825847938,-250.0,0.00015849,2]
[419067076,1774825847947,-196.331,0.00015849,2]
[419067077,1774825847955,-238.05,0.00015849,2]
[419067078,1774825847964,-250.0,0.00015849,2]
[419067079,1774825847973,-162.713,0.00015849,2]
[419067080,1774825847982,-193.362,0.00015849,2]
[419067081,1774825847993,-165.951,0.00015849,2]
[419067082,1774825848002,-214.712,0.00015849,2]
[419067083,1774825848012,-250.0,0.00015849,2]
[419067084,1774825848021,-239.03,0.00015849,2]
[419067085,1774825848029,-179.0,0.00015849,2]
[419067086,1774825848039,-1050.151,0.00015849,2]
[419067087,1774825848048,-1346.0,0.00015849,2]
[419067088,1774825848057,-3518.0,0.00015849,2]
[419067089,1774825848066,-621.0,0.00015849,2]
[419067090,1774825848075,-151.208,0.00015849,2]
[419067091,1774825848084,-1270.708,0.00015849,2]
[419067092,1774825848093,-150.0,0.0001585,2]
[419067093,1774825848103,-1101.0,0.00015861,2]
[419067094,1774825848112,-1000.0,0.0001587,2]
[419067095,1774825848121,-896.261,0.0001587,2]
[419067096,1774825848131,-200.0,0.00015872,2]
[419067097,1774825848140,-500.0,0.00015873,2]
[419067098,1774825848149,-342.71585944,0.00015873,2]
[419067099,1774825848159,-500.0,0.00015873,2]
[419067100,1774825848169,-500.0,0.00015873,2]
[419067101,1774825848177,-500.0,0.00015873,2]
[419067102,1774825848187,-500.37169193,0.00015873,2]
[419067103,1774825848197,-500.0,0.00015873,2]
[419067104,1774825848207,-500.0,0.00015873,2]
[419067105,1774825848216,-500.0,0.00015873,2]
[419067106,1774825848227,-500.0,0.00015873,2]
[419067107,1774825848237,-500.0,0.00015873,2]
[419067108,1774825848248,-3771.031,0.00015874,2]
[419067109,1774825848258,-276.053,0.00015874,2]
[419067110,1774825848267,-1000.0,0.00015878,2]
[419067111,1774825848276,-1000.0,0.0001588,2]
[419067112,1774825848286,-150.0,0.00015883,2]
[419067113,1774825848296,-4000.0,0.00015895,2]
[419067114,1774825848307,-2000.0,0.00015898,2]
[419067115,1774825848317,-2000.0,0.00015898,2]
[419067116,1774825848328,-2000.0,0.00015898,2]
[419067117,1774825848337,-2000.0,0.00015898,2]
[419067118,1774825848348,-2000.0,0.00015898,2]
[419067119,1774825848357,-2000.0,0.00015898,2]
[419067120,1774825848367,-2000.0,0.00015898,2]
[419067121,1774825848376,-2000.0,0.00015898,2]
[419067122,1774825848385,-2000.0,0.00015898,2]
[419067123,1774825848395,-2000.0,0.00015898,2]
[419067124,1774825848403,-150.0,0.000159,2]
[419067125,1774825848414,-20210.25894818,0.000159,2]
[419067126,1774825848423,-700.0,0.000159,5]
[419067127,1774825848433,-300.0,0.000159,5]
[419067128,1774825848443,-11320.11808192,0.000159,2]
[419067129,1774825849790,-197108.88057425,0.000159,2]
[419067130,1774825849802,-150.0,0.000159,2]
[419067131,1774825849812,-499.79551582,0.000159,2]
[419067132,1774825849822,-11987.15180184,0.000159,2]
[419067133,1774825849833,-38738.26631164,0.000159,2]
[419067134,1774825849842,-445.0843,0.000159,2]
[419067135,1774825849851,-150.0,0.00015908,2]
[419067136,1774825849861,-3391.65,0.00015913,2]
[419067137,1774825849869,-30524.92,0.00015913,2]
[419067138,1774825849879,-2094.01,0.00015913,2]
[419067139,1774825849888,-503.0,0.00015918,2]
[419067140,1774825849897,-340.4,0.00015926,2]
[419067141,1774825849907,-1000.0,0.00015932,2]
[419067142,1774825849917,-150.0,0.00015941,2]
[419067143,1774825849927,-350.0,0.00015942,2]
[419067144,1774825849937,-1101.0,0.00015944,2]
[419067145,1774825849946,-500.0,0.00015945,2]
[419067146,1774825849956,-340.4,0.00015957,2]
[419067147,1774825849965,-227.70167578,0.0001596,2]
[419067148,1774825849975,-3835.20744626,0.0001596,2]
[419067149,1774825849985,-683.0,0.00015968,2]
[419067150,1774825849995,-150.0,0.00015968,2]
[419067151,1774825850004,-500.0,0.00015972,2]
[419067152,1774825850016,-500.0,0.00015973,2]
[419067153,1774825850025,-500.0,0.00015973,2]
[419067154,1774825850035,-188.97131412,0.00015973,2]
[419067155,1774825850044,-1536.04360649,0.00015976,2]
[419067156,1774825850055,-225.18697532,0.00015976,2]
[419067157,1774825850064,-225.18697532,0.00015976,2]
[419067158,1774825850074,-187.78006525,0.00015976,2]
[419067159,1774825850083,-225.18697532,0.00015976,2]
[419067160,1774825850094,-745.65223616,0.00015976,2]
[419067161,1774825850103,-200.0,0.00015976,2]
[419067162,1774825850112,-301.00069851,0.00015976,2]
[419067163,1774825850122,-799.54513345,0.00015976,2]
[419067164,1774825850133,-340.4,0.00015988,2]
[419067165,1774825850142,-539.14383516,0.0001599,2]
[419067166,1774825850151,-150.0,0.00015992,2]
[419067167,1774825850160,-1000.0,0.00015992,2]
[419067168,1774825850170,-666.0,0.00015999,2]
[419067169,1774825850179,-3257418.64449875,0.00016,2]
[419067170,1774825850191,-819.76956796,0.00016,2]
[419067171,1774825850206,-1583.0792833,0.00016,2]
[419067172,1774825850219,-1358.36788851,0.00016,2]
[419067173,1774825850230,-411818.16572168,0.00016,2]
[419067174,1774825850249,-309854.24819124,0.00016,2]
[419067175,1774825850260,-2859.70611654,0.00016,2]
[419067176,1774825850272,-10114.36054432,0.00016,2]
[419067177,1774825850326,-117605.26494943,0.00016,2]
[419067178,1774825850858,-8376.6586502,0.00013833,2]
[419067179,1774825850869,-1229.85278039,0.00013833,2]
[419067180,1774825850879,-1764.75571855,0.00016,2]
[419067181,1774825850889,-2263.64078674,0.00016,2]
[419067182,1774825850900,-309.95531654,0.00016,2]
[419067183,1774825850910,-21079.20920877,0.00016,2]
[419067184,1774825850952,-658.29,0.00016,2]
[419067185,1774825850963,-712.40607935,0.00016,2]
[419067186,1774825850978,-1458.670872,0.00016,2]
[419067187,1774825851165,-371.095,0.0001185,2]
[419067188,1774825851176,-2435.31727346,0.0001185,2]
[419067189,1774825851187,-1028.73033201,0.0001185,2]
[419067190,1774825851207,-370.45,0.0001185,2]
[419067191,1774825851843,-643.80513405,0.0001185,2]
[419067192,1774825853517,540.63437119,8.518e-05,2]
[419067193,1774825862824,500.0,9.473e-05,2]
[419067194,1774825928944,431.53,9.131e-05,2]
[419067195,1774825990547,264.27,8.88e-05,2]
[419067196,1774826134846,3131.56,6.058e-05,2]
[419067197,1774826135047,132.01562881,6.377e-05,2]
[419067198,1774826135071,2999.54437119,6.377e-05,2]
[419067199,1774826135246,2000.46562881,6.696e-05,2]
[419067200,1774826135274,1131.09437119,6.696e-05,2]
[419067201,1774826135437,3131.56,7.015e-05,2]
[419067202,1774826135641,737.35562881,7.334e-05,2]
[419067203,1774826135665,2394.20437119,7.334e-05,2]
[419067204,1774826135834,2605.80562881,7.652e-05,2]
[419067205,1774826135870,525.75437119,7.652e-05,2]
[419067206,1774826136038,3131.56,7.971e-05,2]
[419067207,1774826136227,3131.56,8.29e-05,2]
[419067208,1774826137547,-1868.45,8.609e-05,2]
[419067209,1774826137675,-1263.11,8.609e-05,2]
[419067210,1774826137832,-1868.45,8.928e-05,2]
[419067211,1774826138396,-1263.11,8.928e-05,2]
[419067212,1774826140874,-1868.45,9.247e-05,2]
[419067213,1774826140931,-1263.11,9.247e-05,2]
[419067215,1774826325436,151.72,8.829e-05,2]
[419067225,1774826516814,2500.0,0.0002,120]
[419067226,1774826707291,212.0,0.0001938,120]
[419067227,1774826785977,1169.29,8.953e-05,2]
[419067228,1774827008622,159.0,0.0001938,120]
[419067243,1774827031617,-3131.56,9.566e-05,2]
[419067244,1774827031627,-297.36039013,9.566e-05,2]
[419067245,1774827031636,-254.0,9.566e-05,2]
[419067246,1774827031646,-806.82,9.6e-05,2]
[419067247,1774827031655,-291.6148333,9.725e-05,2]
[419067248,1774827031665,-1168.47,9.861e-05,2]
[419067249,1774827031675,-1200.0,9.883e-05,2]
[419067250,1774827031685,-3131.56,9.884e-05,2]
[419067251,1774827031695,-300.0,0.00010201,2]
[419067252,1774827031705,-300.0,0.00010202,2]
[419067253,1774827031714,-3131.56,0.00010203,2]
[419067254,1774827031724,-500.0,0.00010262,2]
[419067255,1774827031733,-4295.53,0.00010408,2]
[419067256,1774827031742,-1852.42,0.00010484,2]
[419067257,1774827031752,-150.0,0.00010521,2]
[419067258,1774827031761,-1000.0,0.00010521,2]
[419067259,1774827031771,-626.88,0.00010522,2]
[419067260,1774827031780,-1824.81346412,0.00010522,2]
[419067262,1774827031815,-1306.74653588,0.00010522,2]
[419067263,1774827031825,-20710.18,0.00010522,2]
[419067264,1774827031834,-499.99,0.00010522,2]
[419067265,1774827031844,-441.95,0.00010522,2]
[419067266,1774827031854,-5366.45,0.00010522,2]
[419067267,1774827031863,-5712.64516358,0.00010522,2]
[419067268,1774827031875,-1085.39999998,0.00010522,2]
[419067269,1774827031895,-13206.92483644,0.00010522,2]
[419067270,1774827031905,-4141.48,0.00010522,2]
[419067271,1774827031915,-564.34,0.00010522,2]
[419067272,1774827031927,-9999.99,0.00010522,2]
[419067273,1774827031937,-150.99,0.00010522,2]
[419067274,1774827031946,-150.99,0.00010522,2]
[419067275,1774827031956,-2457.03,0.00010522,2]
[419067276,1774827031966,-9999.99,0.00010522,2]
[419067277,1774827031975,-341.1154,0.00010522,2]
[419067278,1774827031985,-250.0,0.00010522,2]